{"text_format":"1","workbook":"xlsx","n_sheets":2,"sheets":["مخطط اللياقة البدنية","الأسبوع 1"],"not_rendered":{"charts":0,"images":0,"macros":1,"external_links":0,"defined_names":21,"comments":0,"pivot_tables":0},"unopened":[],"bounds":{"document_bytes":16777216,"sheet_cells":100000,"rows_first":2000,"rows_last":500,"rows_between":2000,"halvings":0,"cell_chars":16384,"cell_head_chars":4096},"cells_cut":0,"cells_raw":0,"read":"whole","date_system":"1900"}

{"sheet":"مخطط اللياقة البدنية","index":0,"n_rows":27,"n_cols":17,"rows_kept":27,"cut":false,"hidden":false,"merged":[[24,4,24,9],[24,11,24,16],[21,4,21,9],[22,4,22,9],[23,4,23,9],[21,11,21,16],[22,11,22,16],[23,11,23,16],[9,11,9,16],[10,11,10,16],[11,11,11,16],[12,11,12,16],[20,4,20,9],[20,11,20,16],[13,4,13,9],[13,11,13,16],[9,4,9,9],[10,4,10,9],[11,4,11,9],[12,4,12,9]]}
[]
[null,"مخطط اللياقة البدنية"]
[]
[null,"تاريخ البدء",null,null,"إحماء",null,null,null,null,null,null,"إطالة"]
[null,"2011-08-01",null,null,"التمارين","عدد المرات","الوزن","الأسابيع","التكرار","تاريخ البدء",null,"التمارين","عدد المرات","الوزن","الأسابيع","التكرار","تاريخ البدء"]
[null,"العمر",null,null,"تمرين الإحماء 1",10,30,4,"يومياً","2011-08-01",null,"تمرين الإطالة 1",7,100,4,"يومياً","2011-08-01"]
[null,46,null,null,"تمرين الإحماء 2",10,40,4,"يومياً","2011-08-01",null,"تمرين الإطالة 2",7,125,4,"يومياً","2011-08-01"]
[null,"النوع",null,null,"تمرين الإحماء 3",10,20,4,"يومياً","2011-08-01",null,"تمرين الإطالة 3",7,75,4,"يومياً","2011-08-01"]
[null,"ذكر",null,null,"تمرين الإحماء 4",10,50,4,"يومياً","2011-08-01",null,"تمرين الإطالة 4",7,85,4,"يومياً","2011-08-01"]
[null,"الطول (قدم)",null,null,"ملاحظات:"]
[null,6]
[null,"الطول (بوصة)"]
[null,0]
[null,"الوزن (رطل)"]
[null,244,null,null," القلب",null,null,null,null,null,null,"تهدئة"]
[null,"الصدر (بوصة)",null,null,"التمارين","عدد المرات","الوزن","الأسابيع","التكرار","تاريخ البدء",null,"التمارين","عدد المرات","الوزن","الأسابيع","التكرار","تاريخ البدء"]
[null,48,null,null,"تمرين القلب 1",30,50,4,"يومياً","2011-08-01",null,"تمرين التهدئة 1",10,30,4,"يومياً","2011-08-01"]
[null,"الخصر (بوصة)",null,null,"تمرين القلب 2",30,60,4,"يومياً","2011-08-01",null,"تمرين التهدئة 2",10,40,4,"يومياً","2011-08-01"]
[null,44,null,null,"تمرين القلب 3",30,40,4,"يومياً","2011-08-01",null,"تمرين التهدئة 3",10,20,4,"يومياً","2011-08-01"]
[null,"دهون الجسم (الهدف)",null,null,"تمرين القلب 4",30,30,4,"يومياً","2011-08-01",null,"تمرين التهدئة 4",10,50,4,"يومياً","2011-08-01"]
[null,9]
[null,"دهون الجسم"]
[null,11]
[null,"مؤشر كتلة الجسم (الهدف)"]
[null,22]
[null,"مؤشر كتلة الجسم"]
[null,{"$f":"IF(B15,(B15/(PlanHeightFeet*12+PlanHeightInches)/(PlanHeightFeet*12+PlanHeightInches)*BMI_Factor),0)","v":33.092010493827161}]

{"sheet":"الأسبوع 1","index":1,"n_rows":30,"n_cols":17,"rows_kept":30,"cut":false,"hidden":false,"merged":[[9,4,9,16],[16,4,16,16],[23,4,23,16],[30,4,30,16]]}
[]
[null,"مخطط اللياقة البدنية"]
[null,null,null,null,null,null,null,null,null,null,null,null,null,null,null,null,"ملاحظة: كرر هذه الورقة لكل أسبوع."]
[null,"يبدأ الأسبوع في",null,null,"إحماء","المخطط",null,{"$f":"StartDate","v":"2011-08-01"},null,{"$f":"H4+1","v":"2011-08-02"},null,{"$f":"J4+1","v":"2011-08-03"},null,{"$f":"L4+1","v":"2011-08-04"},null,{"$f":"N4+1","v":"2011-08-05"}]
[null,"2011-08-01",null,null,"التمارين","عدد المرات","الوزن","عدد المرات","الوزن","عدد المرات","الوزن","عدد المرات","الوزن","عدد المرات","الوزن","عدد المرات","الوزن"]
[null,"الوزن الحالي (رطل)",null,null,{"$f":"'مخطط اللياقة البدنية'!E6","v":"تمرين الإحماء 1"},{"$f":"'مخطط اللياقة البدنية'!F6","v":10},{"$f":"'مخطط اللياقة البدنية'!G6","v":30},10,30,10,30,10,30,10,30,10,30]
[null,241,null,null,{"$f":"'مخطط اللياقة البدنية'!E7","v":"تمرين الإحماء 2"},{"$f":"'مخطط اللياقة البدنية'!F7","v":10},{"$f":"'مخطط اللياقة البدنية'!G7","v":40},10,40,10,40,10,40,10,40,10,40]
[null,"الصدر الحالي (بوصة)",null,null,{"$f":"'مخطط اللياقة البدنية'!E8","v":"تمرين الإحماء 3"},{"$f":"'مخطط اللياقة البدنية'!F8","v":10},{"$f":"'مخطط اللياقة البدنية'!G8","v":20},10,20,10,20,10,20,10,20,10,20]
[null,48,null,null,{"$f":"'مخطط اللياقة البدنية'!E9","v":"تمرين الإحماء 4"},{"$f":"'مخطط اللياقة البدنية'!F9","v":10},{"$f":"'مخطط اللياقة البدنية'!G9","v":50},10,50,10,50,10,50,10,50,10,50]
[null,"الخصر الحالي (بوصة)"]
[null,44,null,null,"إطالة","المخطط",null,{"$f":"StartDate","v":"2011-08-01"},null,{"$f":"H11+1","v":"2011-08-02"},null,{"$f":"J11+1","v":"2011-08-03"},null,{"$f":"L11+1","v":"2011-08-04"},null,{"$f":"N11+1","v":"2011-08-05"}]
[null,"دهون الجسم الحالية",null,null,"التمارين","عدد المرات","الوزن","عدد المرات","الوزن","عدد المرات","الوزن","عدد المرات","الوزن","عدد المرات","الوزن","عدد المرات","الوزن"]
[null,10.8,null,null,{"$f":"'مخطط اللياقة البدنية'!L6","v":"تمرين الإطالة 1"},{"$f":"'مخطط اللياقة البدنية'!M6","v":7},{"$f":"'مخطط اللياقة البدنية'!N6","v":100},5,100,6,90,7,100,7,100,7,100]
[null,"دهون الجسم (الهدف)",null,null,{"$f":"'مخطط اللياقة البدنية'!L7","v":"تمرين الإطالة 2"},{"$f":"'مخطط اللياقة البدنية'!M7","v":7},{"$f":"'مخطط اللياقة البدنية'!N7","v":125},5,125,6,125,5,125,7,125,7,125]
[null,9,null,null,{"$f":"'مخطط اللياقة البدنية'!L8","v":"تمرين الإطالة 3"},{"$f":"'مخطط اللياقة البدنية'!M8","v":7},{"$f":"'مخطط اللياقة البدنية'!N8","v":75},7,75,7,75,7,75,7,75,7,75]
[null,"مؤشر كتلة الجسم الحالي",null,null,{"$f":"'مخطط اللياقة البدنية'!L9","v":"تمرين الإطالة 4"},{"$f":"'مخطط اللياقة البدنية'!M9","v":7},{"$f":"'مخطط اللياقة البدنية'!N9","v":85},6,85,7,85,7,85,7,85,7,85]
[null,{"$f":"IFERROR(IF(B7,(B7/('مخطط اللياقة البدنية'!PlanHeightFeet*12+'مخطط اللياقة البدنية'!PlanHeightInches)/('مخطط اللياقة البدنية'!PlanHeightFeet*12+'مخطط اللياقة البدنية'!PlanHeightInches)*BMI_Factor),0),0)","v":32.68514151234568}]
[null,"مؤشر كتلة الجسم (الهدف)",null,null,"القلب","المخطط",null,{"$f":"StartDate","v":"2011-08-01"},null,{"$f":"H18+1","v":"2011-08-02"},null,{"$f":"J18+1","v":"2011-08-03"},null,{"$f":"L18+1","v":"2011-08-04"},null,{"$f":"N18+1","v":"2011-08-05"}]
[null,{"$f":"'مخطط اللياقة البدنية'!B25","v":22},null,null,"التمارين","عدد المرات","الوزن","عدد المرات","الوزن","عدد المرات","الوزن","عدد المرات","الوزن","عدد المرات","الوزن","عدد المرات","الوزن"]
[null,null,null,null,{"$f":"'مخطط اللياقة البدنية'!E17","v":"تمرين القلب 1"},{"$f":"'مخطط اللياقة البدنية'!F17","v":30},{"$f":"'مخطط اللياقة البدنية'!G17","v":50},30,50,30,50,30,50,30,50,30,50]
[null,null,null,null,{"$f":"'مخطط اللياقة البدنية'!E18","v":"تمرين القلب 2"},{"$f":"'مخطط اللياقة البدنية'!F18","v":30},{"$f":"'مخطط اللياقة البدنية'!G18","v":60},25,60,26,60,29,60,30,60,30,60]
[null,null,null,null,{"$f":"'مخطط اللياقة البدنية'!E19","v":"تمرين القلب 3"},{"$f":"'مخطط اللياقة البدنية'!F19","v":30},{"$f":"'مخطط اللياقة البدنية'!G19","v":40},26,40,27,40,30,40,30,40,28,40]
[null,null,null,null,{"$f":"'مخطط اللياقة البدنية'!E20","v":"تمرين القلب 4"},{"$f":"'مخطط اللياقة البدنية'!F20","v":30},{"$f":"'مخطط اللياقة البدنية'!G20","v":30},30,30,30,30,30,30,30,30,30,30]
[]
[null,null,null,null,"تهدئة","المخطط",null,{"$f":"StartDate","v":"2011-08-01"},null,{"$f":"H25+1","v":"2011-08-02"},null,{"$f":"J25+1","v":"2011-08-03"},null,{"$f":"L25+1","v":"2011-08-04"},null,{"$f":"N25+1","v":"2011-08-05"}]
[null,null,null,null,"التمارين","عدد المرات","الوزن","عدد المرات","الوزن","عدد المرات","الوزن","عدد المرات","الوزن","عدد المرات","الوزن","عدد المرات","الوزن"]
[null,null,null,null,{"$f":"'مخطط اللياقة البدنية'!L17","v":"تمرين التهدئة 1"},{"$f":"'مخطط اللياقة البدنية'!M17","v":10},{"$f":"'مخطط اللياقة البدنية'!N17","v":30},10,30,10,30,10,30,10,30,10,30]
[null,null,null,null,{"$f":"'مخطط اللياقة البدنية'!L18","v":"تمرين التهدئة 2"},{"$f":"'مخطط اللياقة البدنية'!M18","v":10},{"$f":"'مخطط اللياقة البدنية'!N18","v":40},10,40,10,40,10,40,10,40,10,40]
[null,null,null,null,{"$f":"'مخطط اللياقة البدنية'!L19","v":"تمرين التهدئة 3"},{"$f":"'مخطط اللياقة البدنية'!M19","v":10},{"$f":"'مخطط اللياقة البدنية'!N19","v":20},10,20,10,20,10,20,10,20,10,20]
[null,null,null,null,{"$f":"'مخطط اللياقة البدنية'!L20","v":"تمرين التهدئة 4"},{"$f":"'مخطط اللياقة البدنية'!M20","v":10},{"$f":"'مخطط اللياقة البدنية'!N20","v":50},10,50,10,50,10,50,10,50,10,50]